fUSD/lending_fUSD_20240831
["ID","MTS","AMOUNT","RATE_DAILY","PERIOD"]
[336730233,1725085337396,-500.0,0.00041643,120]
[336730234,1725085337446,-500.0,0.00041643,120]
[336730235,1725085337494,-500.0,0.00041643,120]
[336730236,1725085337542,-500.0,0.00041643,120]
[336730237,1725085337590,-2073.66,0.00041643,120]
[336730238,1725085337640,-500.0,0.00041643,120]
[336730239,1725085337694,-909.97,0.00041643,120]
[336730240,1725085337745,-500.0,0.00041643,120]
[336730241,1725085337797,-523.5,0.00041643,120]
[336730242,1725085337843,-500.0,0.00041643,120]
[336730243,1725085337895,-500.0,0.00041643,120]
[336730244,1725085337946,-2189.52,0.00041643,120]
[336730245,1725085337995,-500.0,0.00041643,120]
[336730246,1725085338044,-500.0,0.00041643,120]
[336730247,1725085338098,-1371.6,0.00041643,120]
[336730248,1725085338152,-804.7,0.00041643,120]
[336730249,1725085338205,-1112.52,0.00041643,120]
[336730250,1725085338260,-500.0,0.00041643,120]
[336730251,1725085338315,-2039.92,0.00041643,120]
[336730252,1725085338371,-964.65,0.00041643,120]
[336730253,1725085338428,-500.0,0.00041643,120]
[336730254,1725085338487,-500.0,0.00041643,120]
[336730255,1725085338544,-500.0,0.00041643,120]
[336730256,1725085338597,-1312.09,0.00041643,120]
[336730257,1725085338650,-500.0,0.00041643,120]
[336730258,1725085338703,-500.0,0.00041643,120]
[336730259,1725085338756,-1782.75,0.00041643,120]
[336730260,1725085338808,-500.0,0.00041643,120]
[336730261,1725085338860,-1702.92,0.00041643,120]
[336730262,1725085338915,-1029.68,0.00041643,120]
[336730263,1725085338965,-514.24480877,0.00041643,120]
[336730264,1725085339013,-2092.19,0.00041643,120]
[336730265,1725085339064,-1324.2,0.00041643,120]
[336730266,1725085339113,-500.0,0.00041643,120]
[336730267,1725085339166,-500.0,0.00041643,120]
[336730268,1725085339215,-500.0,0.00041643,120]
[336730269,1725085339266,-500.0,0.00041643,120]
[336730270,1725085339316,-687.53,0.00041643,120]
[336730271,1725085339365,-500.0,0.00041643,120]
[336730272,1725085339415,-1577.57,0.00041643,120]
[336730273,1725085339465,-1633.84,0.00041643,120]
[336730274,1725085339512,-927.35,0.00041643,120]
[336730275,1725085339562,-500.0,0.00041643,120]
[336730276,1725085339612,-500.0,0.00041643,120]
[336730277,1725085339662,-500.0,0.00041643,120]
[336730278,1725085339711,-500.0,0.00041643,120]
[336730279,1725085339759,-500.0,0.00041643,120]
[336730280,1725085339805,-500.0,0.00041643,120]
[336730281,1725085339855,-500.0,0.00041643,120]
[336730282,1725085339905,-1255.1,0.00041643,120]
[336730283,1725085339955,-961.72,0.00041643,120]
[336730284,1725085340008,-500.0,0.00041643,120]
[336730285,1725085340062,-413.7297792,0.00041643,120]
[336730286,1725085340112,-492.60046988,0.00041643,120]
[336730287,1725085340161,-553.73,0.00041643,120]
[336730288,1725085340213,-793.38,0.00041643,120]
[336730289,1725085340263,-500.0,0.00041643,120]
[336730290,1725085340313,-2218.72,0.00041643,120]
[336730291,1725085340362,-1344.82,0.00041643,120]
[336730292,1725085340408,-500.0,0.00041643,120]
[336730293,1725085340457,-500.0,0.00041643,120]
[336730294,1725085340504,-500.0,0.00041643,120]
[336730295,1725085340552,-846.91,0.00041643,120]
[336730296,1725085340600,-500.0,0.00041643,120]
[336730297,1725085340647,-1968.84,0.00041643,120]
[336730298,1725085340697,-500.0,0.00041643,120]
[336730299,1725085340745,-1518.96,0.00041643,120]
[336730300,1725085340792,-1835.9,0.00041643,120]
[336730301,1725085340841,-1044.01,0.00041643,120]
[336730302,1725085340889,-603.33,0.00041643,120]
[336730303,1725085340940,-2179.57,0.00041643,120]
[336730304,1725085340990,-805.02,0.00041643,120]
[336730305,1725085341042,-374.76097414,0.00041643,120]
[336730306,1725085341093,-500.0,0.00041643,120]
[336730307,1725085341141,-1640.29,0.00041643,120]
[336730308,1725085341190,-1667.23,0.00041643,120]
[336730309,1725085341240,-500.0,0.00041643,120]
[336730310,1725085341295,-1646.21,0.00041643,120]
[336730311,1725085341345,-591.32,0.00041643,120]
[336730312,1725085341395,-795.81,0.00041643,120]
[336730313,1725085341444,-877.02,0.00041643,120]
[336730314,1725085341491,-2067.77,0.00041643,120]
[336730315,1725085341540,-608.39,0.00041643,120]
[336730316,1725085341588,-1275.11,0.00041643,120]
[336730317,1725085341638,-500.0,0.00041643,120]
[336730318,1725085341690,-500.0,0.00041643,120]
[336730319,1725085341742,-572.01,0.00041643,120]
[336730320,1725085341792,-500.0,0.00041643,120]
[336730321,1725085341843,-1704.35,0.00041643,120]
[336730322,1725085341895,-844.24,0.00041643,120]
[336730323,1725085341947,-370.32055835,0.00041643,120]
[336730324,1725085342178,-606.37,0.00041643,120]
[336730325,1725085342231,-1379.1,0.00041643,120]
[336730326,1725085342284,-2069.4,0.00041643,120]
[336730327,1725085342337,-500.0,0.00041643,120]
[336730328,1725085342391,-573.28,0.00041643,120]
[336730329,1725085342443,-1830.7,0.00041643,120]
[336730330,1725085342492,-195.90559704,0.00041643,120]
[336730331,1725085342544,-936.23,0.00041643,120]
[336730332,1725085342595,-505.41,0.00041643,120]
[336730333,1725085342646,-500.0,0.00041643,120]
[336730334,1725085342696,-565.82,0.00041643,120]
[336730335,1725085342747,-500.0,0.00041643,120]
[336730336,1725085342801,-500.0,0.00041643,120]
[336730337,1725085342853,-802.68,0.00041643,120]
[336730338,1725085342903,-1846.73,0.00041643,120]
[336730339,1725085342957,-500.0,0.00041643,120]
[336730340,1725085343005,-500.0,0.00041643,120]
[336730341,1725085343054,-709.12,0.00041643,120]
[336730342,1725085343103,-1624.05,0.00041643,120]
[336730343,1725085343154,-1465.91,0.00041643,120]
[336730344,1725085343206,-508.15,0.00041643,120]
[336730345,1725085343263,-1707.44,0.00041643,120]
[336730346,1725085343320,-500.0,0.00041643,120]
[336730347,1725085343374,-500.0,0.00041643,120]
[336730348,1725085343430,-500.0,0.00041643,120]
[336730349,1725085343484,-829.84,0.00041643,120]
[336730350,1725085343535,-500.0,0.00041643,120]
[336730351,1725085343588,-695.91,0.00041643,120]
[336730352,1725085343639,-508.01,0.00041643,120]
[336730353,1725085343690,-500.0,0.00041643,120]
[336730354,1725085343743,-500.0,0.00041643,120]
[336730355,1725085343796,-309.95234554,0.00041643,120]
[336730356,1725085343850,-1694.24,0.00041643,120]
[336730357,1725085343905,-536.53164687,0.00041643,120]
[336730358,1725085343960,-1329.5,0.00041643,120]
[336730359,1725085344013,-1254.74,0.00041643,120]
[336730360,1725085344068,-500.0,0.00041643,120]
[336730361,1725085344122,-701.74,0.00041643,120]
[336730362,1725085344176,-1718.9,0.00041643,120]
[336730363,1725085344228,-595.74318919,0.00041643,120]
[336730364,1725085344279,-500.0,0.00041643,120]
[336730365,1725085344330,-500.0,0.00041643,120]
[336730366,1725085344379,-536.3,0.00041643,120]
[336730367,1725085344431,-500.0,0.00041643,120]
[336730368,1725085344482,-500.0,0.00041643,120]
[336730369,1725085344534,-1416.58,0.00041643,120]
[336730370,1725085344586,-1344.35,0.00041643,120]
[336730371,1725085344643,-500.0,0.00041643,120]
[336730372,1725085344695,-1308.79,0.00041643,120]
[336730373,1725085344747,-1065.87,0.00041643,120]
[336730374,1725085344796,-598.48,0.00041643,120]
[336730375,1725085344846,-934.02,0.00041643,120]
[336730376,1725085344897,-1376.61,0.00041643,120]
[336730377,1725085344947,-1682.93,0.00041643,120]
[336730378,1725085344998,-1537.85,0.00041643,120]
[336730379,1725085345046,-546.73,0.00041643,120]
[336730380,1725085345098,-1026.63,0.00041643,120]
[336730381,1725085345149,-500.0,0.00041643,120]
[336730382,1725085345201,-1312.14,0.00041643,120]
[336730383,1725085345252,-500.0,0.00041643,120]
[336730384,1725085345303,-1653.03,0.00041643,120]
[336730385,1725085345352,-500.0,0.00041643,120]
[336730386,1725085345402,-802.15,0.00041643,120]
[336730387,1725085345452,-522.63,0.00041643,120]
[336730388,1725085345502,-500.0,0.00041643,120]
[336730389,1725085345554,-500.0,0.00041643,120]
[336730390,1725085345605,-500.0,0.00041643,120]
[336730391,1725085345655,-520.04,0.00041643,120]
[336730392,1725085345707,-1148.46,0.00041643,120]
[336730393,1725085345755,-500.0,0.00041643,120]
[336730394,1725085345804,-554.41,0.00041643,120]
[336730395,1725085345856,-795.3,0.00041643,120]
[336730396,1725085345908,-1325.16,0.00041643,120]
[336730397,1725085345963,-1311.27,0.00041643,120]
[336730398,1725085346015,-1407.95,0.00041643,120]
[336730399,1725085346068,-529.85428199,0.00041643,120]
[336730400,1725085346120,-1863.91,0.00041643,120]
[336730401,1725085346170,-500.0,0.00041643,120]
[336730402,1725085346223,-1652.24,0.00041643,120]
[336730403,1725085346273,-641.76,0.00041643,120]
[336730404,1725085346327,-854.31,0.00041643,120]
[336730405,1725085346381,-500.0,0.00041643,120]
[336730406,1725085346431,-527.05,0.00041643,120]
[336730407,1725085346481,-500.0,0.00041643,120]
[336730408,1725085346536,-616.77,0.00041643,120]
[336730409,1725085346595,-2261.76,0.00041643,120]
[336730410,1725085346648,-956.29,0.00041643,120]
[336730411,1725085346699,-500.0,0.00041643,120]
[336730412,1725085346748,-675.48,0.00041643,120]
[336730413,1725085346794,-500.0,0.00041643,120]
[336730414,1725085346845,-500.0,0.00041643,120]
[336730415,1725085346894,-979.96,0.00041643,120]
[336730416,1725085346946,-532.04,0.00041643,120]
[336730417,1725085346995,-1078.05,0.00041643,120]
[336730418,1725085347044,-1968.69,0.00041643,120]
[336730419,1725085347093,-528.35,0.00041643,120]
[336730420,1725085347141,-294.15870884,0.00041643,120]
[336730421,1725085347188,-500.0,0.00041643,120]
[336730422,1725085347237,-500.0,0.00041643,120]
[336730423,1725085347287,-500.0,0.00041643,120]
[336730424,1725085347335,-1332.09,0.00041643,120]
[336730425,1725085347383,-500.0,0.00041643,120]
[336730426,1725085347433,-876.79,0.00041643,120]
[336730427,1725085347482,-1367.12,0.00041643,120]
[336730428,1725085347694,-500.0,0.00041643,120]
[336730429,1725085347749,-2989.98,0.00041643,120]
[336730430,1725085347798,-1307.87,0.00041643,120]
[336730431,1725085347850,-587.17080483,0.00041643,120]
[336730432,1725085347900,-500.0,0.00041643,120]
[336730433,1725085347951,-1533.32,0.00041643,120]
[336730434,1725085347999,-1296.01,0.00041643,120]
[336730435,1725085348049,-500.0,0.00041643,120]
[336730436,1725085348097,-500.0,0.00041643,120]
[336730437,1725085348146,-216.63012989,0.00041643,120]
[336730438,1725085348195,-600.74,0.00041643,120]
[336730439,1725085348245,-5814.25,0.00041643,120]
[336730440,1725085348296,-629.87,0.00041643,120]
[336730441,1725085348345,-1062.71,0.00041643,120]
[336730442,1725085348399,-533.34,0.00041643,120]
[336730443,1725085348451,-1824.21,0.00041643,120]
[336730444,1725085348503,-1015.22,0.00041643,120]
[336730445,1725085348555,-500.0,0.00041643,120]
[336730446,1725085348608,-951.23,0.00041643,120]
[336730447,1725085348660,-5481.44,0.00041643,120]
[336730448,1725085348710,-894.49,0.00041643,120]
[336730449,1725085348761,-842.88,0.00041643,120]
[336730450,1725085348809,-1186.34,0.00041643,120]
[336730451,1725085348857,-677.22,0.00041643,120]
[336730452,1725085348909,-265.84774035,0.00041643,120]
[336730453,1725085348960,-767.11,0.00041643,120]
[336730454,1725085349011,-5075.61,0.00041643,120]
[336730455,1725085349061,-862.19,0.00041643,120]
[336730456,1725085349111,-528.15,0.00041643,120]
[336730457,1725085349159,-825.37,0.00041643,120]
[336730458,1725085349210,-1753.96,0.00041643,120]
[336730459,1725085349264,-1653.61,0.00041643,120]
[336730460,1725085349316,-2000.96,0.00041643,120]
[336730461,1725085349367,-562.28,0.00041643,120]
[336730462,1725085349417,-500.0,0.00041643,120]
[336730463,1725085349465,-1013.59,0.00041643,120]
[336730464,1725085349514,-500.0,0.00041643,120]
[336730465,1725085349563,-1776.62,0.00041643,120]
[336730466,1725085349616,-500.0,0.00041643,120]
[336730467,1725085349666,-543.15665149,0.00041643,120]
[336730468,1725085349718,-3910.3,0.00041643,120]
[336730469,1725085349765,-1570.05,0.00041643,120]
[336730470,1725085349816,-764.94,0.00041643,120]
[336730471,1725085349864,-500.0,0.00041643,120]
[336730472,1725085349913,-500.0,0.00041643,120]
[336730473,1725085349960,-500.0,0.00041643,120]
[336730474,1725085350008,-500.0,0.00041643,120]
[336730475,1725085350055,-500.0,0.00041643,120]
[336730476,1725085350105,-500.0,0.00041643,120]
[336730477,1725085350152,-883.9,0.00041643,120]
[336730478,1725085350204,-500.0,0.00041643,120]
[336730479,1725085350255,-696.93,0.00041643,120]
[336730480,1725085350305,-500.0,0.00041643,120]
[336730481,1725085350353,-500.0,0.00041643,120]
[336730482,1725085350401,-500.0,0.00041643,120]
[336730483,1725085350451,-1372.32,0.00041643,120]
[336730484,1725085350503,-500.0,0.00041643,120]
[336730485,1725085350555,-833.92,0.00041643,120]
[336730486,1725085350604,-664.41,0.00041643,120]
[336730487,1725085350652,-1438.05,0.00041643,120]
[336730488,1725085350701,-500.0,0.00041643,120]
[336730489,1725085350749,-863.53,0.00041643,120]
[336730490,1725085350795,-785.33,0.00041643,120]
[336730491,1725085350848,-1603.72,0.00041643,120]
[336730492,1725085350897,-500.0,0.00041643,120]
[336730493,1725085350944,-500.0,0.00041643,120]
[336730494,1725085350992,-500.0,0.00041643,120]
[336730495,1725085351040,-2224.87,0.00041643,120]
[336730496,1725085351087,-500.0,0.00041643,120]
[336730497,1725085351136,-1322.92,0.00041643,120]
[336730498,1725085351187,-2404.44,0.00041643,120]
[336730499,1725085351241,-500.0,0.00041643,120]
[336730500,1725085351296,-901.41,0.00041643,120]
[336730501,1725085351350,-610.01,0.00041643,120]
[336730502,1725085351403,-729.12,0.00041643,120]
[336730503,1725085351455,-500.0,0.00041643,120]
[336730504,1725085351503,-1979.21,0.00041643,120]
[336730505,1725085351552,-577.81,0.00041643,120]
[336730506,1725085351600,-500.0,0.00041643,120]
[336730507,1725085351650,-6226.26,0.00041643,120]
[336730508,1725085351699,-666.11,0.00041643,120]
[336730509,1725085351750,-500.0,0.00041643,120]
[336730510,1725085351800,-500.0,0.00041643,120]
[336730511,1725085351849,-2083.88,0.00041643,120]
[336730512,1725085351903,-2247.13,0.00041643,120]
[336730513,1725085351953,-500.0,0.00041643,120]
[336730514,1725085352003,-3075.22,0.00041643,120]
[336730515,1725085352057,-2368.94,0.00041643,120]
[336730516,1725085352109,-1000.0,0.00041779,120]
[336730517,1725085352160,-590.64,0.00041917,120]
[336730518,1725085352211,-2636.0,0.00041948,62]
[336730519,1725085352263,-2000.0,0.00041981,120]
[336730520,1725085352315,-1000.0,0.00041999,120]
[336730521,1725085352366,-1321.49511208,0.00042,120]
[336730522,1725085352416,-3276.00057137,0.00042,120]
[336730523,1725085352471,-500000.0,0.00042,120]
[336730524,1725085352523,-900.0,0.00042,120]
[336730525,1725085352576,-9976.27994105,0.00042,120]
[336730526,1725085352628,-1000.0,0.00042,120]
[336730527,1725085352680,-60202.7625792,0.00042,120]
[336730528,1725085352733,-5000.0,0.00042,120]
[336730529,1725085352795,-5000.0,0.00042,120]
[336730530,1725085352845,-5000.0,0.00042,120]
[336730531,1725085352903,-150.0,0.00042055,120]
[336730532,1725085353138,-1000.0,0.00042073,120]
[336730533,1725085353194,-2142.76,0.00042191,120]
[336730534,1725085353250,-500.0,0.00042191,120]
[336730535,1725085353306,-500.0,0.00042191,120]
[336730536,1725085353362,-500.0,0.00042191,120]
[336730537,1725085353419,-519.84524912,0.00042191,120]
[336730538,1725085353474,-500.0,0.00042191,120]
[336730539,1725085353532,-619.82870105,0.00042191,120]
[336730540,1725085353591,-500.0,0.00042191,120]
[336730541,1725085353647,-500.0,0.00042191,120]
[336730542,1725085353707,-500.0,0.00042191,120]
[336730543,1725085353765,-500.0,0.00042191,120]
[336730544,1725085353821,-419.33454525,0.00042191,120]
[336730545,1725085353877,-500.0,0.00042191,120]
[336730546,1725085353936,-500.0,0.00042191,120]
[336730547,1725085353992,-970.41,0.00042191,120]
[336730548,1725085354046,-500.0,0.00042191,120]
[336730549,1725085354098,-500.0,0.00042191,120]
[336730550,1725085354154,-1254.2,0.00042191,120]
[336730551,1725085354210,-2064.59,0.00042191,120]
[336730552,1725085354264,-500.0,0.00042191,120]
[336730553,1725085354324,-1831.01,0.00042191,120]
[336730554,1725085354385,-1397.22,0.00042191,120]
[336730555,1725085354441,-500.0,0.00042191,120]
[336730556,1725085354498,-2245.78,0.00042191,120]
[336730557,1725085354554,-500.0,0.00042191,120]
[336730558,1725085354611,-1552.31,0.00042191,120]
[336730559,1725085354669,-2597.83,0.00042191,120]
[336730560,1725085354729,-500.0,0.00042191,120]
[336730561,1725085354785,-1035.53,0.00042191,120]
[336730562,1725085354839,-500.0,0.00042191,120]
[336730563,1725085354893,-744.82,0.00042191,120]
[336730564,1725085354946,-696.59,0.00042191,120]
[336730565,1725085354998,-673.61,0.00042191,120]
[336730566,1725085355051,-150.0,0.00042191,120]
[336730567,1725085355101,-1520.87,0.00042191,120]
[336730568,1725085355151,-582.5,0.00042191,120]
[336730569,1725085355203,-500.0,0.00042191,120]
[336730570,1725085355254,-531.38,0.00042191,120]
[336730571,1725085355306,-1554.54,0.00042191,120]
[336730572,1725085355358,-1271.21,0.00042191,120]
[336730573,1725085355410,-506.46,0.00042191,120]
[336730574,1725085355462,-510.50231081,0.00042191,120]
[336730575,1725085355513,-500.0,0.00042191,120]
[336730576,1725085355566,-500.0,0.00042191,120]
[336730577,1725085355619,-525.09,0.00042191,120]
[336730578,1725085355674,-917.3,0.00042191,120]
[336730579,1725085355727,-500.0,0.00042191,120]
[336730580,1725085355780,-500.0,0.00042191,120]
[336730581,1725085355832,-996.95,0.00042191,120]
[336730582,1725085355887,-500.0,0.00042191,120]
[336730583,1725085355938,-696.4,0.00042191,120]
[336730584,1725085355990,-500.0,0.00042191,120]
[336730585,1725085356042,-803.74,0.00042191,120]
[336730586,1725085356092,-748.83,0.00042191,120]
[336730587,1725085356144,-500.0,0.00042191,120]
[336730588,1725085356201,-568.05,0.00042191,120]
[336730589,1725085356254,-1168.88,0.00042191,120]
[336730590,1725085356308,-761.86,0.00042191,120]
[336730591,1725085356363,-991.52,0.00042191,120]
[336730592,1725085356416,-500.0,0.00042191,120]
[336730593,1725085356467,-500.0,0.00042191,120]
[336730594,1725085356516,-1384.4,0.00042191,120]
[336730595,1725085356568,-731.6,0.00042191,120]
[336730596,1725085356623,-500.0,0.00042191,120]
[336730597,1725085356677,-2458.49,0.00042191,120]
[336730598,1725085356729,-632.98678468,0.00042191,120]
[336730599,1725085356780,-500.0,0.00042191,120]
[336730600,1725085356829,-540.27,0.00042191,120]
[336730601,1725085356882,-500.0,0.00042191,120]
[336730602,1725085356932,-500.0,0.00042191,120]
[336730603,1725085356990,-500.0,0.00042191,120]
[336730604,1725085357043,-2118.23,0.00042191,120]
[336730605,1725085357096,-600.38,0.00042191,120]
[336730606,1725085357148,-522.69,0.00042191,120]
[336730607,1725085357201,-1210.64,0.00042191,120]
[336730608,1725085357251,-255.9644442,0.00042191,120]
[336730609,1725085357303,-500.0,0.00042191,120]
[336730610,1725085357353,-500.0,0.00042191,120]
[336730611,1725085357403,-1856.52,0.00042191,120]
[336730612,1725085357454,-500.0,0.00042191,120]
[336730613,1725085357508,-500.0,0.00042191,120]
[336730614,1725085357562,-500.0,0.00042191,120]
[336730615,1725085357614,-856.67,0.00042191,120]
[336730616,1725085357665,-1905.46,0.00042191,120]
[336730617,1725085357717,-1521.24,0.00042191,120]
[336730618,1725085357769,-500.0,0.00042191,120]
[336730619,1725085357819,-547.37,0.00042191,120]
[336730620,1725085357871,-500.0,0.00042191,120]
[336730621,1725085357925,-660.11,0.00042191,120]
[336730622,1725085357976,-2325.34,0.00042191,120]
[336730623,1725085358030,-501.74,0.00042191,120]
[336730624,1725085358085,-849.88,0.00042191,120]
[336730625,1725085358142,-2388.65,0.00042191,120]
[336730626,1725085358196,-500.0,0.00042191,120]
[336730627,1725085358256,-2070.59,0.00042191,120]
[336730628,1725085358310,-500.0,0.00042191,120]
[336730629,1725085358366,-1982.62,0.00042191,120]
[336730630,1725085358420,-173.08781713,0.00042191,120]
[336730631,1725085358472,-500.0,0.00042191,120]
[336730632,1725085358524,-500.0,0.00042191,120]
[336730633,1725085358577,-500.0,0.00042191,120]
[336730634,1725085358631,-2073.66,0.00042191,120]
[336730635,1725085358684,-500.0,0.00042191,120]
[336730636,1725085358915,-909.97,0.00042191,120]
[336730637,1725085358967,-500.0,0.00042191,120]
[336730638,1725085359020,-523.5,0.00042191,120]
[336730639,1725085359072,-500.0,0.00042191,120]
[336730640,1725085359123,-500.0,0.00042191,120]
[336730641,1725085359173,-2189.52,0.00042191,120]
[336730642,1725085359226,-500.0,0.00042191,120]
[336730643,1725085359280,-586.6743481,0.00042191,120]
[336730644,1725085359335,-1371.6,0.00042191,120]
[336730645,1725085359392,-804.7,0.00042191,120]
[336730646,1725085359447,-1112.52,0.00042191,120]
[336730647,1725085359497,-500.0,0.00042191,120]
[336730648,1725085359548,-2039.92,0.00042191,120]
[336730649,1725085359601,-964.65,0.00042191,120]
[336730650,1725085359654,-500.0,0.00042191,120]
[336730651,1725085359705,-500.0,0.00042191,120]
[336730652,1725085359754,-501.55356123,0.00042191,120]
[336730653,1725085359801,-1312.09,0.00042191,120]
[336730654,1725085359849,-500.0,0.00042191,120]
[336730655,1725085359898,-500.0,0.00042191,120]
[336730656,1725085359948,-1782.75,0.00042191,120]
[336730657,1725085359996,-500.0,0.00042191,120]
[336730658,1725085360045,-1702.92,0.00042191,120]
[336730659,1725085360093,-1029.68,0.00042191,120]
[336730660,1725085360142,-2092.19,0.00042191,120]
[336730661,1725085360192,-1324.2,0.00042191,120]
[336730662,1725085360239,-500.0,0.00042191,120]
[336730663,1725085360288,-500.0,0.00042191,120]
[336730664,1725085360340,-500.0,0.00042191,120]
[336730665,1725085360389,-500.0,0.00042191,120]
[336730666,1725085360436,-687.53,0.00042191,120]
[336730667,1725085360487,-500.0,0.00042191,120]
[336730668,1725085360535,-1577.57,0.00042191,120]
[336730669,1725085360583,-927.35,0.00042191,120]
[336730670,1725085360634,-1633.84,0.00042191,120]
[336730671,1725085360685,-500.0,0.00042191,120]
[336730672,1725085360734,-500.0,0.00042191,120]
[336730673,1725085360782,-500.0,0.00042191,120]
[336730674,1725085360833,-500.0,0.00042191,120]
[336730675,1725085360884,-500.0,0.00042191,120]
[336730676,1725085360935,-500.0,0.00042191,120]
[336730677,1725085360987,-500.0,0.00042191,120]
[336730678,1725085361037,-1255.1,0.00042191,120]
[336730679,1725085361088,-961.72,0.00042191,120]
[336730680,1725085361139,-524.96006831,0.00042191,120]
[336730681,1725085361192,-553.73,0.00042191,120]
[336730682,1725085361244,-793.38,0.00042191,120]
[336730683,1725085361296,-225.46558758,0.00042191,120]
[336730684,1725085361350,-2218.72,0.00042191,120]
[336730685,1725085361404,-1344.82,0.00042191,120]
[336730686,1725085361456,-500.0,0.00042191,120]
[336730687,1725085361507,-500.0,0.00042191,120]
[336730688,1725085361561,-500.0,0.00042191,120]
[336730689,1725085361615,-846.91,0.00042191,120]
[336730690,1725085361665,-500.0,0.00042191,120]
[336730691,1725085361715,-1968.84,0.00042191,120]
[336730692,1725085361765,-500.0,0.00042191,120]
[336730693,1725085361814,-1518.96,0.00042191,120]
[336730694,1725085361865,-1835.9,0.00042191,120]
[336730695,1725085361921,-1044.01,0.00042191,120]
[336730696,1725085361972,-603.33,0.00042191,120]
[336730697,1725085362026,-2179.57,0.00042191,120]
[336730698,1725085362078,-805.02,0.00042191,120]
[336730699,1725085362130,-500.0,0.00042191,120]
[336730700,1725085362183,-1640.29,0.00042191,120]
[336730701,1725085362240,-1667.23,0.00042191,120]
[336730702,1725085362289,-500.0,0.00042191,120]
[336730703,1725085362339,-1646.21,0.00042191,120]
[336730704,1725085362386,-591.32,0.00042191,120]
[336730705,1725085362434,-795.81,0.00042191,120]
[336730706,1725085362484,-877.02,0.00042191,120]
[336730707,1725085362534,-2067.77,0.00042191,120]
[336730708,1725085362581,-608.39,0.00042191,120]
[336730709,1725085362632,-1275.11,0.00042191,120]
[336730710,1725085362682,-500.0,0.00042191,120]
[336730711,1725085362729,-500.0,0.00042191,120]
[336730712,1725085362775,-572.01,0.00042191,120]
[336730713,1725085362821,-500.0,0.00042191,120]
[336730714,1725085362871,-1704.35,0.00042191,120]
[336730715,1725085362917,-844.24,0.00042191,120]
[336730716,1725085362966,-606.37,0.00042191,120]
[336730717,1725085363015,-1379.1,0.00042191,120]
[336730718,1725085363065,-2069.4,0.00042191,120]
[336730719,1725085363113,-500.0,0.00042191,120]
[336730720,1725085363162,-573.28,0.00042191,120]
[336730721,1725085363211,-1830.7,0.00042191,120]
[336730722,1725085363259,-936.23,0.00042191,120]
[336730723,1725085363311,-505.41,0.00042191,120]
[336730724,1725085363363,-500.0,0.00042191,120]
[336730725,1725085363413,-565.82,0.00042191,120]
[336730726,1725085363465,-500.0,0.00042191,120]
[336730727,1725085363514,-500.0,0.00042191,120]
[336730728,1725085363563,-802.68,0.00042191,120]
[336730729,1725085363617,-1846.73,0.00042191,120]
[336730730,1725085363669,-500.0,0.00042191,120]
[336730731,1725085363720,-500.0,0.00042191,120]
[336730732,1725085363773,-709.12,0.00042191,120]